fUST/lending_fUST_20250724
["ID","MTS","AMOUNT","RATE_DAILY","PERIOD"]
[374569322,1753359063985,-460.0,0.00021917,2]
[374569323,1753359063996,-1622.45,0.00021917,2]
[374569324,1753359064005,-507.3531794,0.00021917,2]
[374569325,1753359064015,-501.83,0.00021917,2]
[374569326,1753359064024,-558.57,0.00021917,2]
[374569327,1753359064034,-1151.1,0.00021917,2]
[374569328,1753359064044,-3987.66,0.00021917,2]
[374569329,1753359064054,-1227.26,0.00021917,2]
[374569330,1753359064063,-599.14,0.00021917,2]
[374569331,1753359064073,-1102.32,0.00021917,2]
[374569332,1753359064082,-643.03,0.00021917,2]
[374569333,1753359064092,-721.5,0.00021917,2]
[374569334,1753359064103,-536.66,0.00021917,2]
[374569335,1753359064113,-460.0,0.00021917,2]
[374569336,1753359064124,-502.1114801,0.00021917,2]
[374569337,1753359064134,-1239.72,0.00021917,2]
[374569338,1753359064145,-460.0,0.00021917,2]
[374569339,1753359064156,-474.28,0.00021917,2]
[374569340,1753359064167,-695.52,0.00021917,2]
[374569341,1753359064177,-614.93,0.00021917,2]
[374569342,1753359064187,-460.0,0.00021917,2]
[374569343,1753359064198,-602.97,0.00021917,2]
[374569344,1753359064207,-460.0,0.00021917,2]
[374569345,1753359064217,-460.0,0.00021917,2]
[374569346,1753359064227,-547.38,0.00021917,2]
[374569347,1753359064238,-460.0,0.00021917,2]
[374569348,1753359064248,-570.67,0.00021917,2]
[374569349,1753359064258,-460.0,0.00021917,2]
[374569350,1753359064267,-2410.32,0.00021917,2]
[374569351,1753359064277,-460.0,0.00021917,2]
[374569352,1753359064288,-573.06,0.00021917,2]
[374569353,1753359064299,-573.59,0.00021917,2]
[374569354,1753359064308,-460.0,0.00021917,2]
[374569355,1753359064318,-701.0,0.00021917,2]
[374569356,1753359064327,-460.0,0.00021917,2]
[374569357,1753359064337,-5756.37,0.00021917,2]
[374569358,1753359064347,-1810.46,0.00021917,2]
[374569359,1753359064357,-959.34,0.00021917,2]
[374569360,1753359064366,-460.0,0.00021917,2]
[374569361,1753359064377,-460.0,0.00021917,2]
[374569362,1753359064387,-707.55,0.00021917,2]
[374569363,1753359064396,-460.0,0.00021917,2]
[374569364,1753359064406,-944.6,0.00021917,2]
[374569365,1753359064415,-460.0,0.00021917,2]
[374569366,1753359064425,-1286.44,0.00021917,2]
[374569367,1753359064435,-533.7,0.00021917,2]
[374569368,1753359064445,-460.0,0.00021917,2]
[374569369,1753359064454,-764.53,0.00021917,2]
[374569370,1753359064464,-460.0,0.00021917,2]
[374569371,1753359064473,-2933.32,0.00021917,2]
[374569372,1753359064484,-460.0,0.00021917,2]
[374569373,1753359064492,-479.16,0.00021917,2]
[374569374,1753359064502,-575.0,0.00021917,2]
[374569375,1753359064512,-3445.18,0.00021917,2]
[374569376,1753359064522,-179.463855,0.00021917,2]
[374569377,1753359064531,-626.2,0.00021917,2]
[374569378,1753359064541,-460.0,0.00021917,2]
[374569379,1753359064551,-1738.24,0.00021917,2]
[374569380,1753359064560,-460.0,0.00021917,2]
[374569381,1753359064570,-179.463855,0.00021917,2]
[374569382,1753359064579,-1496.43,0.00021917,2]
[374569383,1753359064589,-460.0,0.00021917,2]
[374569384,1753359064598,-460.0,0.00021917,2]
[374569385,1753359064608,-500.0,0.00021917,2]
[374569386,1753359064617,-486.79078975,0.00021917,2]
[374569387,1753359064628,-594.34,0.00021917,2]
[374569388,1753359064637,-460.0,0.00021917,2]
[374569389,1753359064647,-179.71133149,0.00021918,2]
[374569390,1753359064657,-2101.69450456,0.00021969,6]
[374569391,1753359064666,-151.0,0.00022,7]
[374569392,1753359064675,-1101.33,0.00022,7]
[374569393,1753359064684,-151.0,0.00022,7]
[374569394,1753359064694,-7000.0,0.00022,3]
[374569395,1753359064703,-178.0,0.00022,2]
[374569396,1753359064712,-169.0,0.00022,2]
[374569397,1753359064722,-166.67,0.00022,2]
[374569398,1753359064732,-163.0,0.00022,2]
[374569399,1753359064741,-460.0,0.00022098,2]
[374569400,1753359064751,-272.6,0.00022149,5]
[374569401,1753359064760,-2101.69450456,0.00022176,6]
[374569402,1753359064769,-460.0,0.00022191,2]
[374569403,1753359064783,-460.0,0.00022191,2]
[374569404,1753359064792,-460.0,0.00022191,2]
[374569405,1753359064801,-460.0,0.00022191,2]
[374569406,1753359064811,-460.0,0.00022191,2]
[374569407,1753359064820,-512.48422645,0.00022191,2]
[374569408,1753359064830,-460.0,0.00022191,2]
[374569409,1753359064839,-460.0,0.00022191,2]
[374569410,1753359064848,-460.0,0.00022191,2]
[374569411,1753359064859,-460.0,0.00022191,2]
[374569412,1753359064870,-460.0,0.00022191,2]
[374569413,1753359064879,-460.0,0.00022191,2]
[374569414,1753359064888,-530.38,0.00022191,2]
[374569415,1753359064899,-598.54,0.00022191,2]
[374569416,1753359064908,-589.49,0.00022191,2]
[374569417,1753359064918,-460.0,0.00022191,2]
[374569418,1753359064927,-460.0,0.00022191,2]
[374569419,1753359064937,-460.0,0.00022191,2]
[374569420,1753359064947,-247.48757887,0.00022191,2]
[374569421,1753359064958,-2288.96,0.00022191,2]
[374569422,1753359064968,-2539.35329512,0.00022191,2]
[374569423,1753359065204,-687.50670488,0.00022191,2]
[374569424,1753359065215,-549.71,0.00022191,2]
[374569425,1753359065225,-460.0,0.00022191,2]
[374569426,1753359065235,-460.0,0.00022191,2]
[374569427,1753359065245,-582.51362943,0.00022191,2]
[374569428,1753359065255,-1346.17,0.00022191,2]
[374569429,1753359065265,-460.0,0.00022191,2]
[374569430,1753359065274,-460.0,0.00022191,2]
[374569431,1753359065285,-1622.45,0.00022191,2]
[374569432,1753359065294,-501.83,0.00022191,2]
[374569433,1753359065304,-558.57,0.00022191,2]
[374569434,1753359065314,-1151.1,0.00022191,2]
[374569435,1753359065324,-3987.66,0.00022191,2]
[374569436,1753359065334,-1227.26,0.00022191,2]
[374569437,1753359065344,-599.14,0.00022191,2]
[374569438,1753359065355,-1102.32,0.00022191,2]
[374569439,1753359065364,-643.03,0.00022191,2]
[374569440,1753359065375,-721.5,0.00022191,2]
[374569441,1753359065386,-536.66,0.00022191,2]
[374569442,1753359065396,-460.0,0.00022191,2]
[374569443,1753359065404,-1239.72,0.00022191,2]
[374569444,1753359065414,-460.0,0.00022191,2]
[374569445,1753359065423,-474.28,0.00022191,2]
[374569446,1753359065433,-695.52,0.00022191,2]
[374569447,1753359065442,-614.93,0.00022191,2]
[374569448,1753359065452,-460.0,0.00022191,2]
[374569449,1753359065462,-602.97,0.00022191,2]
[374569450,1753359065471,-460.0,0.00022191,2]
[374569451,1753359065480,-460.0,0.00022191,2]
[374569452,1753359065490,-547.38,0.00022191,2]
[374569453,1753359065500,-460.0,0.00022191,2]
[374569454,1753359065510,-570.67,0.00022191,2]
[374569455,1753359065519,-460.0,0.00022191,2]
[374569456,1753359065529,-2410.32,0.00022191,2]
[374569457,1753359065538,-460.0,0.00022191,2]
[374569458,1753359065548,-573.06,0.00022191,2]
[374569459,1753359065559,-573.59,0.00022191,2]
[374569460,1753359065569,-460.0,0.00022191,2]
[374569461,1753359065579,-701.0,0.00022191,2]
[374569462,1753359065589,-460.0,0.00022191,2]
[374569463,1753359065599,-5756.37,0.00022191,2]
[374569464,1753359065608,-1810.46,0.00022191,2]
[374569465,1753359065618,-959.34,0.00022191,2]
[374569466,1753359065628,-460.0,0.00022191,2]
[374569467,1753359065638,-460.0,0.00022191,2]
[374569468,1753359065647,-707.55,0.00022191,2]
[374569469,1753359065657,-460.0,0.00022191,2]
[374569470,1753359065668,-944.6,0.00022191,2]
[374569471,1753359065677,-460.0,0.00022191,2]
[374569472,1753359065687,-1286.44,0.00022191,2]
[374569473,1753359065696,-533.7,0.00022191,2]
[374569474,1753359065706,-460.0,0.00022191,2]
[374569475,1753359065715,-764.53,0.00022191,2]
[374569476,1753359065724,-460.0,0.00022191,2]
[374569477,1753359065734,-2933.32,0.00022191,2]
[374569478,1753359065743,-460.0,0.00022191,2]
[374569479,1753359065753,-151.0,0.00022191,7]
[374569480,1753359065762,-479.16,0.00022191,2]
[374569481,1753359065773,-575.0,0.00022191,2]
[374569482,1753359065783,-3445.18,0.00022191,2]
[374569483,1753359065792,-151.0,0.00022191,7]
[374569484,1753359065802,-626.2,0.00022191,2]
[374569485,1753359065812,-460.0,0.00022191,2]
[374569486,1753359065822,-1738.24,0.00022191,2]
[374569487,1753359065831,-460.0,0.00022191,2]
[374569488,1753359065841,-1496.43,0.00022191,2]
[374569489,1753359065852,-460.0,0.00022191,2]
[374569490,1753359065862,-460.0,0.00022191,2]
[374569491,1753359065872,-594.34,0.00022191,2]
[374569492,1753359065881,-460.0,0.00022191,2]
[374569493,1753359065891,-250.0,0.00022245,2]
[374569494,1753359065900,-178.2667198,0.00022303,2]
[374569495,1753359065909,-159.9507963,0.00022303,2]
[374569496,1753359065918,-353.129568,0.00022303,2]
[374569497,1753359065928,-577.6552115,0.00022303,2]
[374569498,1753359065938,-1155.310423,0.00022303,2]
[374569499,1753359065948,-159.9507963,0.00022303,2]
[374569500,1753359065958,-178.2667198,0.00022303,2]
[374569501,1753359065967,-159.9507963,0.00022303,2]
[374569502,1753359065978,-577.6552115,0.00022303,2]
[374569503,1753359065987,-178.2667198,0.00022303,2]
[374569504,1753359065996,-159.9507963,0.00022303,2]
[374569505,1753359066006,-178.2667198,0.00022303,2]
[374569506,1753359066016,-219.8431912,0.00022303,2]
[374569507,1753359066026,-1153.9963086,0.00022303,2]
[374569508,1753359066035,-319.4613702,0.00022303,2]
[374569509,1753359066044,-289.549182,0.0002232,7]
[374569510,1753359066053,-289.549182,0.0002232,7]
[374569511,1753359066063,-4000.0,0.00022327,4]
[374569512,1753359066073,-2101.69450456,0.00022383,7]
[374569513,1753359066082,-460.0,0.00022465,2]
[374569514,1753359066092,-460.0,0.00022465,2]
[374569515,1753359066101,-460.0,0.00022465,2]
[374569516,1753359066111,-460.0,0.00022465,2]
[374569517,1753359066122,-460.0,0.00022465,2]
[374569518,1753359066131,-460.0,0.00022465,2]
[374569519,1753359066141,-460.0,0.00022465,2]
[374569520,1753359066152,-460.0,0.00022465,2]
[374569521,1753359066162,-397.99319594,0.00022465,2]
[374569522,1753359066171,-460.0,0.00022465,2]
[374569523,1753359066180,-151.342857,0.00022465,7]
[374569524,1753359066190,-460.0,0.00022465,2]
[374569525,1753359066200,-151.342857,0.00022465,7]
[374569526,1753359066210,-530.38,0.00022465,2]
[374569527,1753359066220,-598.54,0.00022465,2]
[374569528,1753359066230,-589.49,0.00022465,2]
[374569529,1753359066239,-460.0,0.00022465,2]
[374569530,1753359066249,-460.0,0.00022465,2]
[374569531,1753359066259,-2288.96,0.00022465,2]
[374569532,1753359066269,-3226.86,0.00022465,2]
[374569533,1753359066279,-549.71,0.00022465,2]
[374569534,1753359066289,-460.0,0.00022465,2]
[374569535,1753359066299,-460.0,0.00022465,2]
[374569536,1753359066308,-1346.17,0.00022465,2]
[374569537,1753359066317,-460.0,0.00022465,2]
[374569538,1753359066327,-460.0,0.00022465,2]
[374569539,1753359066336,-1622.45,0.00022465,2]
[374569540,1753359066345,-501.83,0.00022465,2]
[374569541,1753359066355,-558.57,0.00022465,2]
[374569542,1753359066364,-1151.1,0.00022465,2]
[374569543,1753359066374,-3987.66,0.00022465,2]
[374569544,1753359066383,-1227.26,0.00022465,2]
[374569545,1753359066393,-599.14,0.00022465,2]
[374569546,1753359066402,-1102.32,0.00022465,2]
[374569547,1753359066412,-643.03,0.00022465,2]
[374569548,1753359066422,-721.5,0.00022465,2]
[374569549,1753359066431,-536.66,0.00022465,2]
[374569550,1753359066440,-460.0,0.00022465,2]
[374569551,1753359066449,-1239.72,0.00022465,2]
[374569552,1753359066459,-460.0,0.00022465,2]
[374569553,1753359066468,-474.28,0.00022465,2]
[374569554,1753359066478,-695.52,0.00022465,2]
[374569555,1753359066488,-614.93,0.00022465,2]
[374569556,1753359066498,-541.59180541,0.00022465,2]
[374569557,1753359066507,-602.97,0.00022465,2]
[374569558,1753359066516,-460.0,0.00022465,2]
[374569559,1753359066526,-547.38,0.00022465,2]
[374569560,1753359066535,-460.0,0.00022465,2]
[374569561,1753359066544,-570.67,0.00022465,2]
[374569562,1753359066553,-2410.32,0.00022465,2]
[374569563,1753359066564,-460.0,0.00022465,2]
[374569564,1753359066575,-573.06,0.00022465,2]
[374569565,1753359066586,-573.59,0.00022465,2]
[374569566,1753359066598,-460.0,0.00022465,2]
[374569567,1753359066607,-701.0,0.00022465,2]
[374569568,1753359066616,-460.0,0.00022465,2]
[374569569,1753359066627,-1810.46,0.00022465,2]
[374569570,1753359066636,-5756.37,0.00022465,2]
[374569571,1753359066645,-959.34,0.00022465,2]
[374569572,1753359066655,-460.0,0.00022465,2]
[374569573,1753359066664,-460.0,0.00022465,2]
[374569574,1753359066674,-707.55,0.00022465,2]
[374569575,1753359066685,-460.0,0.00022465,2]
[374569576,1753359066694,-944.6,0.00022465,2]
[374569577,1753359066703,-460.0,0.00022465,2]
[374569578,1753359066713,-314.805231,0.00022465,7]
[374569579,1753359066723,-1286.44,0.00022465,2]
[374569580,1753359066733,-533.7,0.00022465,2]
[374569581,1753359066743,-1806.44,0.00022465,2]
[374569582,1753359066845,-314.805231,0.00022465,7]
[374569583,1753359066858,-460.0,0.00022465,2]
[374569584,1753359066869,-764.53,0.00022465,2]
[374569585,1753359066880,-460.0,0.00022465,2]
[374569586,1753359066891,-2933.32,0.00022465,2]
[374569587,1753359066902,-460.0,0.00022465,2]
[374569588,1753359066913,-479.16,0.00022465,2]
[374569589,1753359066923,-575.0,0.00022465,2]
[374569590,1753359066933,-3445.18,0.00022465,2]
[374569591,1753359066944,-626.2,0.00022465,2]
[374569592,1753359066953,-1738.24,0.00022465,2]
[374569593,1753359066963,-460.0,0.00022465,2]
[374569594,1753359066972,-460.0,0.00022465,2]
[374569595,1753359066981,-1496.43,0.00022465,2]
[374569596,1753359066991,-460.0,0.00022465,2]
[374569597,1753359067000,-460.0,0.00022465,2]
[374569598,1753359067009,-594.34,0.00022465,2]
[374569599,1753359067018,-151.0,0.0002249,7]
[374569600,1753359067028,-151.0,0.0002249,7]
[374569601,1753359067038,-272.6,0.00022493,5]
[374569602,1753359067047,-1000.0,0.000225,2]
[374569603,1753359067057,-166.67,0.000225,2]
[374569604,1753359067067,-500.0,0.0002256,2]
[374569605,1753359067076,-5888.0,0.00022585,2]
[374569606,1753359067085,-2101.69450456,0.0002259,7]
[374569607,1753359067095,-500.0,0.00022626,2]
[374569608,1753359067104,-500.0,0.00022626,2]
[374569609,1753359067113,-660.0,0.00022646,2]
[374569610,1753359067123,-153.0,0.00022712,2]
[374569611,1753359067133,-306.0,0.00022712,2]
[374569612,1753359067143,-153.0,0.00022712,2]
[374569613,1753359067153,-151.733625,0.0002273,7]
[374569614,1753359067162,-1429.64,0.0002273,7]
[374569615,1753359067172,-460.0,0.00022739,2]
[374569616,1753359067182,-460.0,0.00022739,2]
[374569617,1753359067192,-460.0,0.00022739,2]
[374569618,1753359067201,-460.0,0.00022739,2]
[374569619,1753359067211,-460.0,0.00022739,2]
[374569620,1753359067220,-460.0,0.00022739,2]
[374569621,1753359067229,-460.0,0.00022739,2]
[374569622,1753359067239,-460.0,0.00022739,2]
[374569623,1753359067249,-460.0,0.00022739,2]
[374569624,1753359067258,-530.38,0.00022739,2]
[374569625,1753359067268,-598.54,0.00022739,2]
[374569626,1753359067278,-589.49,0.00022739,2]
[374569627,1753359067288,-460.0,0.00022739,2]
[374569628,1753359067297,-460.0,0.00022739,2]
[374569629,1753359067307,-2288.96,0.00022739,2]
[374569630,1753359067317,-3226.86,0.00022739,2]
[374569631,1753359067326,-549.71,0.00022739,2]
[374569632,1753359067335,-460.0,0.00022739,2]
[374569633,1753359067345,-460.0,0.00022739,2]
[374569634,1753359067355,-1346.17,0.00022739,2]
[374569635,1753359067365,-460.0,0.00022739,2]
[374569636,1753359067379,-460.0,0.00022739,2]
[374569637,1753359067388,-1622.45,0.00022739,2]
[374569638,1753359067398,-501.83,0.00022739,2]
[374569639,1753359067408,-558.57,0.00022739,2]
[374569640,1753359067418,-1151.1,0.00022739,2]
[374569641,1753359067427,-3987.66,0.00022739,2]
[374569642,1753359067437,-1227.26,0.00022739,2]
[374569643,1753359067447,-599.14,0.00022739,2]
[374569644,1753359067456,-1102.32,0.00022739,2]
[374569645,1753359067466,-643.03,0.00022739,2]
[374569646,1753359067475,-721.5,0.00022739,2]
[374569647,1753359067486,-536.66,0.00022739,2]
[374569648,1753359067497,-460.0,0.00022739,2]
[374569649,1753359067507,-1239.72,0.00022739,2]
[374569650,1753359067516,-460.0,0.00022739,2]
[374569651,1753359067526,-474.28,0.00022739,2]
[374569652,1753359067536,-695.52,0.00022739,2]
[374569653,1753359067545,-614.93,0.00022739,2]
[374569654,1753359067555,-602.97,0.00022739,2]
[374569655,1753359067564,-460.0,0.00022739,2]
[374569656,1753359067574,-547.38,0.00022739,2]
[374569657,1753359067584,-460.0,0.00022739,2]
[374569658,1753359067593,-570.67,0.00022739,2]
[374569659,1753359067603,-2410.32,0.00022739,2]
[374569660,1753359067611,-460.0,0.00022739,2]
[374569661,1753359067623,-573.06,0.00022739,2]
[374569662,1753359067633,-573.59,0.00022739,2]
[374569663,1753359067642,-358.71358579,0.00022739,2]
[374569664,1753359067651,-701.0,0.00022739,2]
[374569665,1753359067661,-460.0,0.00022739,2]
[374569666,1753359067671,-1810.46,0.00022739,2]
[374569667,1753359067681,-5756.37,0.00022739,2]
[374569668,1753359067690,-959.34,0.00022739,2]
[374569669,1753359067700,-460.0,0.00022739,2]
[374569670,1753359067710,-460.0,0.00022739,2]
[374569671,1753359067720,-707.55,0.00022739,2]
[374569672,1753359067729,-460.0,0.00022739,2]
[374569673,1753359067739,-944.6,0.00022739,2]
[374569674,1753359067748,-460.0,0.00022739,2]
[374569675,1753359067758,-1286.44,0.00022739,2]
[374569676,1753359067770,-533.7,0.00022739,2]
[374569677,1753359067783,-460.0,0.00022739,2]
[374569678,1753359067793,-764.53,0.00022739,2]
[374569679,1753359067803,-460.0,0.00022739,2]
[374569680,1753359067812,-2933.32,0.00022739,2]
[374569681,1753359067823,-460.0,0.00022739,2]
[374569682,1753359067832,-479.16,0.00022739,2]
[374569683,1753359067842,-575.0,0.00022739,2]
[374569684,1753359067853,-3445.18,0.00022739,2]
[374569685,1753359067865,-626.2,0.00022739,2]
[374569686,1753359067877,-1738.24,0.00022739,2]
[374569687,1753359067886,-460.0,0.00022739,2]
[374569688,1753359067904,-460.0,0.00022739,2]
[374569689,1753359067916,-1496.43,0.00022739,2]
[374569690,1753359067926,-460.0,0.00022739,2]
[374569691,1753359067936,-460.0,0.00022739,2]
[374569692,1753359067948,-594.34,0.00022739,2]
[374569693,1753359067958,-500.98396891,0.00022763,2]
[374569694,1753359067968,-587.0,0.00022776,2]
[374569695,1753359067979,-160.0,0.00022797,7]
[374569696,1753359067989,-2101.69450456,0.00022797,7]
[374569697,1753359067998,-151.0,0.000228,7]
[374569698,1753359068008,-12624.810388,0.000228,7]
[374569699,1753359068017,-1429.64,0.0002283,2]
[374569700,1753359068027,-272.6,0.00022837,5]
[374569701,1753359068037,-8056.31815782,0.00022899,2]
[374569702,1753359068047,-151.318303,0.000229,7]
[374569703,1753359068057,-151.0,0.000229,7]
[374569704,1753359068067,-289.549182,0.000229,7]
[374569705,1753359068077,-289.549182,0.000229,7]
[374569706,1753359068087,-151.0,0.000229,7]
[374569707,1753359068096,-3000.0,0.000229,2]
[374569708,1753359068106,-151.0,0.000229,7]
[374569709,1753359068115,-151.0,0.000229,7]
[374569710,1753359068125,-3000.0,0.0002291,2]
[374569711,1753359068136,-3000.0,0.0002292,2]
[374569712,1753359068146,-166.67,0.00022921,2]
[374569713,1753359068156,-230.0,0.00022925,2]
[374569714,1753359068166,-3000.0,0.0002293,2]
[374569715,1753359068175,-151.0,0.0002293,7]
[374569716,1753359068186,-151.0,0.0002293,7]
[374569717,1753359068196,-1429.64,0.0002293,6]
[374569718,1753359068205,-3000.0,0.0002294,2]
[374569719,1753359068215,-179.463855,0.0002294,7]
[374569720,1753359068225,-179.463855,0.0002294,7]
[374569721,1753359068235,-3000.0,0.0002295,2]
[374569722,1753359068245,-3000.0,0.0002296,2]
[374569723,1753359068255,-500.0,0.0002296,2]
[374569724,1753359068266,-3000.0,0.0002297,2]
[374569725,1753359068276,-3000.0,0.0002298,2]
[374569726,1753359068287,-1000.0,0.00022986,2]
[374569727,1753359068297,-1000.0,0.00022986,2]
[374569728,1753359068307,-1000.0,0.00022986,2]
[374569729,1753359068317,-1000.0,0.00022986,2]
[374569730,1753359068328,-1000.0,0.00022986,2]
[374569731,1753359068338,-1000.0,0.00022986,2]
[374569732,1753359068348,-1000.0,0.00022986,2]
[374569733,1753359068359,-1000.0,0.00022986,2]
[374569734,1753359068368,-1052.97741673,0.00022986,2]
[374569735,1753359068380,-3000.0,0.0002299,2]
[374569736,1753359068390,-460.0,0.00022999,2]
[374569737,1753359068399,-460.0,0.00022999,2]
[374569738,1753359068410,-460.0,0.00022999,2]
[374569739,1753359068419,-460.0,0.00022999,2]
[374569740,1753359068429,-223.19950505,0.00022999,2]
[374569741,1753359068440,-151.0,0.00022999,7]
[374569742,1753359068449,-151.0,0.00022999,7]
[374569743,1753359068458,-289.549182,0.00023,7]
[374569744,1753359068468,-289.549182,0.00023,7]
[374569745,1753359068478,-3000.0,0.00023,2]
[374569746,1753359068633,-1000.0,0.00023,2]
[374569747,1753359068644,-840.23756827,0.00023,3]
[374569748,1753359068654,-215.88777038,0.00023,3]
[374569749,1753359068664,-160.0,0.00023,2]
[374569750,1753359068674,-231.16387093,0.00023,3]
[374569751,1753359068684,-160.0,0.00023,3]
[374569752,1753359068694,-526.24749348,0.00023,3]
[374569753,1753359068704,-2101.69450456,0.00023003,8]
[374569754,1753359068713,-3000.0,0.0002301,2]
[374569755,1753359068723,-460.0,0.00023013,2]
[374569756,1753359068733,-460.0,0.00023013,2]
[374569757,1753359068743,-460.0,0.00023013,2]
[374569758,1753359068752,-460.0,0.00023013,2]
[374569759,1753359068762,-558.52907695,0.00023013,2]
[374569760,1753359068771,-176.10048466,0.00023013,2]
[374569761,1753359068783,-460.0,0.00023013,2]
[374569762,1753359068793,-460.0,0.00023013,2]
[374569763,1753359068803,-460.0,0.00023013,2]
[374569764,1753359068812,-530.38,0.00023013,2]
[374569765,1753359068823,-598.54,0.00023013,2]
[374569766,1753359068832,-589.49,0.00023013,2]
[374569767,1753359068842,-460.0,0.00023013,2]
[374569768,1753359068853,-460.0,0.00023013,2]
[374569769,1753359068864,-2288.96,0.00023013,2]
[374569770,1753359068875,-3226.86,0.00023013,2]
[374569771,1753359068885,-549.71,0.00023013,2]
[374569772,1753359068894,-460.0,0.00023013,2]
[374569773,1753359068904,-460.0,0.00023013,2]
[374569774,1753359068915,-1346.17,0.00023013,2]
[374569775,1753359068924,-460.0,0.00023013,2]
[374569776,1753359068935,-460.0,0.00023013,2]
[374569777,1753359068944,-1622.45,0.00023013,2]
[374569778,1753359068957,-501.83,0.00023013,2]
[374569779,1753359068967,-558.57,0.00023013,2]
[374569780,1753359068977,-1151.1,0.00023013,2]
[374569781,1753359068987,-3987.66,0.00023013,2]
[374569782,1753359068997,-1227.26,0.00023013,2]
[374569783,1753359069008,-599.14,0.00023013,2]
[374569784,1753359069017,-1102.32,0.00023013,2]
[374569785,1753359069027,-643.03,0.00023013,2]
[374569786,1753359069037,-721.5,0.00023013,2]
[374569787,1753359069047,-536.66,0.00023013,2]
[374569788,1753359069056,-460.0,0.00023013,2]
[374569789,1753359069065,-1239.72,0.00023013,2]
[374569790,1753359069075,-474.28,0.00023013,2]
[374569791,1753359069085,-695.52,0.00023013,2]
[374569792,1753359069095,-614.93,0.00023013,2]
[374569793,1753359069105,-602.97,0.00023013,2]
[374569794,1753359069115,-460.0,0.00023013,2]
[374569795,1753359069126,-547.38,0.00023013,2]
[374569796,1753359069135,-460.0,0.00023013,2]
[374569797,1753359069145,-570.67,0.00023013,2]
[374569798,1753359069155,-2410.32,0.00023013,2]
[374569799,1753359069165,-323.21,0.00023013,2]
[374569800,1753359069175,-573.06,0.00023013,2]
[374569801,1753359069184,-573.59,0.00023013,2]
[374569802,1753359069195,-701.0,0.00023013,2]
[374569803,1753359069205,-460.0,0.00023013,2]
[374569804,1753359069215,-1810.46,0.00023013,2]
[374569805,1753359069225,-5756.37,0.00023013,2]
[374569806,1753359069235,-460.0,0.00023013,2]
[374569807,1753359069246,-460.0,0.00023013,2]
[374569808,1753359069256,-707.55,0.00023013,2]
[374569809,1753359069266,-460.0,0.00023013,2]
[374569810,1753359069276,-959.34,0.00023013,2]
[374569811,1753359069286,-944.6,0.00023013,2]
[374569812,1753359069296,-460.0,0.00023013,2]
[374569813,1753359069306,-1286.44,0.00023013,2]
[374569814,1753359069317,-533.7,0.00023013,2]
[374569815,1753359069327,-460.0,0.00023013,2]
[374569816,1753359069337,-764.53,0.00023013,2]
[374569817,1753359069346,-460.0,0.00023013,2]
[374569818,1753359069357,-2933.32,0.00023013,2]
[374569819,1753359069366,-467.64022864,0.00023013,2]
[374569820,1753359069376,-479.16,0.00023013,2]
[374569821,1753359069385,-575.0,0.00023013,2]